Cogmind - Beta 16.1 @@@ ROGUE MODE // 2026.02.27 @ 22:53:50 Player: TheSkyeDoctor Result: Destroyed by G-47 Trooper with Particle Gun Performance ------------- Evolutions (2) 1000 Regions Visited (5) 1000 Robots Destroyed (19) 95 Value Destroyed (532) 532 Prototype IDs (23) 460 Alien Tech Used (0) 0 Bonus (475) 475 TOTAL SCORE: 3562 Bonus ------- Follower Combat Kills 175 Aligned with FarCom 300 Cogmind --------- Core Integrity 0/550 Matter 300/300 Energy 100/100 System Corruption 0% Temperature Cool (9) Movement Core (50) Location -8/Materials Parts ------- > --- POWER (1) -------- (None) > --- PROPULSION (4) --- (None) > --- UTILITY (4) ------ Power Shielding > --- WEAPON (2) ------- Katana > --- INVENTORY (5) ---- Ion Engine Large Matter Pod (150) Improved Terrain Scanner Mining Laser Peak State ------------ > --- POWER ------------ Light Deuterium Engine > --- PROPULSION ------- Light Treads Advanced Treads > --- UTILITY ---------- High-capacity Storage Unit Power Shielding > --- WEAPON ----------- Spread Laser Field Lobotomy Kit > --- INVENTORY -------- Ion Engine Wheel Compact Wheel Large Matter Pod Improved Terrain Scanner Mining Laser Katana [Rating: 22] Favorites ----------- Power Ion Engine Engine Ion Engine Propulsion Light Treads Treads Light Treads Wheel Wheel Utility High-capacity Storage Unit Device Seismic Detector Storage High-capacity Storage Unit Protection Power Shielding Weapon Assault Rifle Energy Gun Spread Laser Ballistic Gun Assault Rifle Special Weapon Field Lobotomy Kit Slashing Weapon Katana Build | -11 -10 -10 -10 -9 -8 ------- Run | Yrd Mat Min Exi Min Mat Slots Evolved 4 | . . . . . 4 Power . | . . . . . . Propulsion 2 | . . . . . 2 Utility 2 | . . . . . 2 Weapon . | . . . . . . Parts Attached 20 | 7 . 2 . . 11 Power 3 | 1 . 1 . . 1 Engine 3 | 1 . 1 . . 1 Core . | . . . . . . Reactor . | . . . . . . Propulsion 7 | 2 . . . . 5 Treads 5 | 2 . . . . 3 Leg . | . . . . . . Wheel 2 | . . . . . 2 Hover . | . . . . . . Flight . | . . . . . . Utility 4 | 2 . 1 . . 1 Device 1 | 1 . . . . . Storage 2 | 1 . 1 . . . Processor . | . . . . . . Hackware . | . . . . . . Protection 1 | . . . . . 1 Artifact . | . . . . . . Weapon 6 | 2 . . . . 4 Energy Gun 1 | . . . . . 1 Energy Cannon . | . . . . . . Ballistic Gun 3 | 2 . . . . 1 Ballistic Cannon . | . . . . . . Launcher . | . . . . . . Special Weapon 1 | . . . . . 1 Impact Weapon . | . . . . . . Slashing Weapon 1 | . . . . . 1 Piercing Weapon . | . . . . . . Special Melee Weapon . | . . . . . . Unidentified Prototypes . | . . . . . . Parts Lost 15 | . . 1 . . 14 Power 2 | . . 1 . . 1 Propulsion 7 | . . . . . 7 Utility 2 | . . . . . 2 Weapon 4 | . . . . . 4 Highest Loss Streak 10 | . . 1 . . 10 To Critical Strikes . | . . . . . . Average Backups 6 | 2 4 6 6 7 6 Power . | . 1 . . . . Propulsion 1 | 1 2 2 2 2 1 Utility 3 | . 1 3 4 4 2 Weapon . | . . . . . 1 Tool/Special . | . . . . . . Unused Backups 3 | . . . . . 3 Power . | . . . . . . Propulsion . | . . . . . . Utility 2 | . . . . . 2 Weapon 1 | . . . . . 1 Tool/Special . | . . . . . . Average Slot Usage (%) 93 | . 100 97 100 100 67 Engine 11 | . 14 11 14 14 7 Treads 27 | . 28 28 28 28 22 Device 12 | . 14 14 14 14 3 Storage 13 | . 14 14 14 14 8 Protection 1 | . . . . . 8 Ballistic Gun 24 | . 28 28 28 28 5 Peak Build Rating 22 | 7 7 7 8 8 22 Average Rating 8 | 5 7 6 7 8 15 On Entrance 6 | . 7 7 7 8 8 Avg Prop Armor Cover (%) . | . . . . . . Naked Turns . | . . . . . . Heaviest Build 57 | 13 13 50 50 50 57 Greatest Support 82 | 40 40 40 40 40 82 Greatest Overweight (x) 14 | . . 1 1 1 14 Average Overweight (x) . | . . . 1 1 . Largest Inventory Capacity 20 | 8 8 20 20 20 20 Average Capacity 18 | 6 8 19 20 20 19 Most Carried 8 | 4 4 8 7 8 8 Average Carried 6 | 2 4 6 6 7 6 Final Capacity 20 | 8 8 20 20 20 5 Final Carried 8 | 4 4 6 7 8 4 Class Distribution -------------------- 100% | Mutant Dominant Class ---------------- Mutant | -10/Materials Mutant | -10/Mines Mutant | -10/Exiles Mutant | -9/Mines Mutant | -8/Materials Resources | -11 -10 -10 -10 -9 -8 ----------- Run | Yrd Mat Min Exi Min Mat Matter Collected 739 | 276 . 284 . 11 168 Remotely . | . . . . . . Salvage Created 612 | 50 . 251 . 51 260 Parts 41 | 6 . 19 . 4 12 Haulers Intercepted . | . . . . . . Recyclers Shooed 2 | . . . . 1 1 Parts Field Recycled . | . . . . . . Retrieved Matter . | . . . . . . Parts Self-Destructed . | . . . . . . Prevented . | . . . . . . Parts Restored . | . . . . . . Kills | -11 -10 -10 -10 -9 -8 ------- Run | Yrd Mat Min Exi Min Mat Combat Hostiles Destroyed 16 | . . 7 . 3 6 Guns 16 | . . 7 . 3 6 Classes Destroyed 5 | 1 . 2 . . 2 Tunneler 3 | 2 . . . . 1 Swarmer 6 | . . 3 . 3 . Grunt 8 | . . 4 . . 4 Brawler 1 | . . . . . 1 Sentry 1 | . . . . . 1 Best Kill Streak 3 | 2 . 3 . 3 2 Combat Bots Only 3 | . . 3 . 3 2 Max Kills in Single Turn 2 | 1 . 2 . 2 2 Gunslinging 1 | . . 1 . 1 1 Exploded . | . . . . . . Melee . | . . . . . . Uniques/NPCs Destroyed . | . . . . . . Combat | -11 -10 -10 -10 -9 -8 -------- Run | Yrd Mat Min Exi Min Mat Hostile Shots Fired 253 | . . 42 . 11 200 Missed 68 | . . 10 . 2 56 Hits 185 | . . 32 . 9 144 Melee 3 | . . . . . 3 Projectile 182 | . . 32 . 9 141 Critical Strikes 8 | . . 1 . . 7 Damage Taken 2746 | . . 363 . 79 2304 Core 604 | . . 39 . 12 553 Absorbed by Shields . | . . . . . . Redirected to Shielding 23 | . . . . . 23 Core Remaining (%) 89 | 100 . . . 79 . Volleys Fired 70 | 4 . 17 . 3 46 Largest 2 | 2 . 2 . 2 2 Hottest 85 | 40 . 40 . 40 85 Shots Fired 116 | 8 . 34 . 6 68 Gun 111 | 8 . 34 . 6 63 Cannon . | . . . . . . Launcher . | . . . . . . Special 5 | . . . . . 5 Kinetic 82 | 8 . 34 . 6 34 Thermal 29 | . . . . . 29 Explosive . | . . . . . . Electromagnetic . | . . . . . . Robot Hit Streak 11 | 3 . 7 . 4 11 Robot Miss Streak 5 | 1 . 3 . 2 5 Penetration Max . | . . . . . . Secondary Targets 8 | . . 4 . 1 3 Max Gunslinging Chain 1 | . . 1 . 1 1 Shots Hit Robots 100 | 6 . 23 . 4 67 Core Hits 59 | 2 . 13 . 3 41 Critical Kills . | . . . . . . Critical Parts Destroyed . | . . . . . . Critical Strikes . | . . . . . . Melee Attacks 7 | . . . . . 7 Impact . | . . . . . . Slashing 7 | . . . . . 7 Piercing . | . . . . . . Sneak Attacks 1 | . . . . . 1 Combat Hostiles . | . . . . . . Follow-up Attacks . | . . . . . . Damage Inflicted 1388 | 69 . 309 . 53 957 Guns 1178 | 69 . 300 . 50 759 Cannons . | . . . . . . Explosions . | . . . . . . Melee 198 | . . . . . 198 Ramming 12 | . . 9 . 3 . Kinetic 794 | 69 . 300 . 50 375 Thermal 384 | . . . . . 384 Explosive . | . . . . . . Electromagnetic . | . . . . . . Impact . | . . . . . . Slashing 198 | . . . . . 198 Piercing . | . . . . . . Highest Corruption . | . . . . . . Average Corruption . | . . . . . . Corruption Purged . | . . . . . . Corruption Blocked . | . . . . . . Overload Shots . | . . . . . . Overflow Damage 68 | . . . . . 68 Projectiles . | . . . . . . Explosions . | . . . . . . Melee 68 | . . . . . 68 Knockbacks . | . . . . . . Impact . | . . . . . . Kinetic . | . . . . . . Secondary . | . . . . . . Self-Inflicted Damage . | . . . . . . Shots . | . . . . . . Rammed 5 | . . 3 . 2 . Targets Rammed 5 | . . 3 . 2 . Kicked . | . . . . . . Crushed . | . . . . . . Highest Temperature 311 | . . 9 . . 311 Average Temperature 99 | . . 4 . . 105 Received Heat Transfer 1428 | . . 141 . . 1287 Siege Activations . | . . . . . . Martial Activations . | . . . . . . Shielding Activations . | . . . . . . Robots Disrupted . | . . . . . . Combat Hostiles . | . . . . . . Robots Corrupted . | . . . . . . Combat Hostiles . | . . . . . . Parts Fried . | . . . . . . Impact Corruptions . | . . . . . . Robots Melted . | . . . . . . Combat Hostiles . | . . . . . . Parts Melted . | . . . . . . Heat Transferred 470 | . . . . . 470 Parts Sabotaged . | . . . . . . Parts Stolen . | . . . . . . Parts Stripped . | . . . . . . Power Chain Reactions . | . . . . . . Alert | -11 -10 -10 -10 -9 -8 ------- Run | Yrd Mat Min Exi Min Mat Maximum Alert Level . | . . . . . . Low Security (%) 100 | 100 100 100 . 100 100 Level 1 . | . . . . . . Level 2 . | . . . . . . Level 3 . | . . . . . . Level 4 . | . . . . . . Level 5 . | . . . . . . High Security . | . . . . . . Max Security . | . . . . . . Peak Influence 103 | 10 . 70 . 85 103 Initial 29 | . . . . . 29 Average 11 | . . 7 . 69 27 Influence Increases 668 | 10 . 170 . 85 403 Destroy 0b10 Robot/C 420 | . . 140 . 60 220 Destroy 0b10 Robot/NC 15 | 10 . . . . 5 Destroy Leader 90 | . . 30 . 10 50 Allied During Kill 6 | . . . . . 6 Disable Machine 30 | . . . . 15 15 Destroy Structure 2 | . . . . . 2 Lose Combat Pursuer 105 | . . . . . 105 Influence Decreases 585 | 10 . 170 . 10 395 Entered New Map 46 | . . . . . 46 Time Decay 354 | 10 . 170 . 10 164 Lost Part 130 | . . . . . 130 Lost Ally 55 | . . . . . 55 Squads Dispatched 2 | . . . . . 2 Investigation 1 | . . . . . 1 Extermination . | . . . . . . Reinforcement 1 | . . . . . 1 Assault . | . . . . . . Garrison . | . . . . . . Intercept . | . . . . . . Searches Triggered . | . . . . . . Construction Impeded . | . . . . . . Haulers Reinforced . | . . . . . . Active Scanning Responses . | . . . . . . Cargo Convoy Interrupts . | . . . . . . Stealth | -11 -10 -10 -10 -9 -8 --------- Run | Yrd Mat Min Exi Min Mat Distress Signals 3 | . . . . . 3 Communications Jammed . | . . . . . . Distress Signals . | . . . . . . Times Spotted 38 | . . 7 . 4 27 Peak Tracking Total 11 | . . 3 . 4 11 Tactical Retreats 4 | . . . . . 4 Traps | -11 -10 -10 -10 -9 -8 ------- Run | Yrd Mat Min Exi Min Mat Traps Triggered 1 | . . . . . 1 Indirectly . | . . . . . . Trap Hack Attempts . | . . . . . . Triggered . | . . . . . . Disarmed . | . . . . . . Reprogrammed . | . . . . . . Reused . | . . . . . . Traps Extracted . | . . . . . . Installed . | . . . . . . Triggered . | . . . . . . Machines | -11 -10 -10 -10 -9 -8 ---------- Run | Yrd Mat Min Exi Min Mat Machines Disabled 2 | . . . . 1 1 Max in Single Turn 1 | . . . . 1 1 Machines Repaired . | . . . . . . Machines Dismantled . | . . . . . . Machines Sabotaged . | . . . . . . Overloaded Fab Kills . | . . . . . . Hacking | -11 -10 -10 -10 -9 -8 --------- Run | Yrd Mat Min Exi Min Mat Machines Accessed 1 | . . . 1 . . Terminals . | . . . . . . Fabricators . | . . . . . . Repair Stations . | . . . . . . Recycling Units . | . . . . . . Scanalyzers . | . . . . . . Garrison Access . | . . . . . . Total Hacks 1 | . . . 1 . . Successful 1 | . . . 1 . . Failed . | . . . . . . Catastrophic . | . . . . . . Database Lockouts . | . . . . . . Manual 1 | . . . 1 . . Terminals . | . . . . . . Fabricators . | . . . . . . Repair Stations . | . . . . . . Recycling Units . | . . . . . . Scanalyzers . | . . . . . . Garrison Access . | . . . . . . Terminal Hacks 1 | . . . 1 . . Proto ID Catalog 1 | . . . 1 . . Fabricator Hacks . | . . . . . . Repair Station Hacks . | . . . . . . Recycling Unit Hacks . | . . . . . . Scanalyzer . | . . . . . . Garrison Access Hacks . | . . . . . . Unauthorized Hacks . | . . . . . . Terminals . | . . . . . . Fabricators . | . . . . . . Repair Stations . | . . . . . . Recycling Units . | . . . . . . Scanalyzers . | . . . . . . Garrison Access . | . . . . . . Data Cores Recovered . | . . . . . . Used . | . . . . . . Hacking Detections . | . . . . . . Full Trace Events . | . . . . . . Feedback Events . | . . . . . . Feedback Blocked . | . . . . . . Robot Schematics Acquired . | . . . . . . Robots Built . | . . . . . . Authchips . | . . . . . . Time . | . . . . . . Total Robot Build Rating . | . . . . . . Part Schematics Acquired . | . . . . . . Parts Built . | . . . . . . Authchips . | . . . . . . Time . | . . . . . . Total Part Build Rating . | . . . . . . Part Studies Acquired . | . . . . . . Parts Repaired . | . . . . . . Time . | . . . . . . Parts Recycled . | . . . . . . Recycled Matter . | . . . . . . Retrieved Matter . | . . . . . . Retrieved Components . | . . . . . . Parts Scanalyzed . | . . . . . . Part Schematics Acquired . | . . . . . . Parts Damaged . | . . . . . . Bothacking | -11 -10 -10 -10 -9 -8 ------------ Run | Yrd Mat Min Exi Min Mat Used RIF Installer . | . . . . . . Robots Hacked . | . . . . . . Non-combat . | . . . . . . Combat . | . . . . . . Robot Hacks Applied . | . . . . . . Relay Couplers Released . | . . . . . . Fabnet Peak Effective % . | . . . . . . Robots Rewired . | . . . . . . Allies Hacked . | . . . . . . Hacks Repelled . | . . . . . . Allies | -11 -10 -10 -10 -9 -8 -------- Run | Yrd Mat Min Exi Min Mat Total Allies 6 | . . . . 1 5 Largest Group 2 | . . . . 1 2 Highest-Rated Group 32 | . . . . 31 32 Highest-Rated Ally 31 | . . . . 31 31 Total Orders . | . . . . . . Ally Attacks 40 | . . . . . 40 Total Damage 605 | . . . . . 605 Kills 5 | . . . . . 5 Allies Corrupted 1 | . . . . . 1 Allies Melted . | . . . . . . Field Lobotomies 5 | . . . . . 5 Intel | -11 -10 -10 -10 -9 -8 ------- Run | Yrd Mat Min Exi Min Mat Active Infowar (turns) 2185 | 51 13 1427 541 30 123 Seismic 2185 | 51 13 1427 541 30 123 Robot Analysis Total . | . . . . . . Derelict Logs Recovered 1 | . . 1 . . . Drone Launches . | . . . . . . Drone Recoveries . | . . . . . . Exploration | -11 -10 -10 -10 -9 -8 ------------- Run | Yrd Mat Min Exi Min Mat Turns Passed 2501 | 125 13 1427 541 30 365 Spaces Moved 999 | 65 9 582 226 7 110 Core 6 | 4 . . . . 2 Treads 991 | 61 9 582 226 7 106 Legs . | . . . . . . Wheels 2 | . . . . . 2 Hover . | . . . . . . Flight . | . . . . . . Fastest Speed 50 | 50 160 160 240 240 105 Average Speed 225 | 153 160 234 240 240 193 Slowest Speed 750 | 160 160 240 240 240 750 Overloaded Moves . | . . . . . . Propulsion Burnouts . | . . . . . . Robots Hopped . | . . . . . . Potential Cave-ins . | . . . . . . Cave-ins Triggered . | . . . . . . Exploration Rate (%) 28 | 4 3 83 60 5 17 Regions Visited 5 Branch Regions 3 Pre-discovered Areas 1 | . . 1 . . . Known Exits Taken . | . . . . . . Unknown Exits Taken 5 | 1 1 1 1 1 . Scrap Searched 2 | . . 2 . . . Spaces Dug 1 | . . . . . 1 Terrain Destroyed 1 | . . . . . 1 Melee 1 | . . . . . 1 Projectile . | . . . . . . AOE . | . . . . . . Terrain Rammed . | . . . . . . Walls Destroyed . | . . . . . . Machines Disabled . | . . . . . . Actions | -11 -10 -10 -10 -9 -8 --------- Run | Yrd Mat Min Exi Min Mat Total 1114 | 80 8 609 226 12 179 Wait 2 | . . 2 . . . Move 994 | 64 8 581 225 6 110 Hop . | . . . . . . Pick Up 12 | 5 . 2 1 1 3 Fast Attach 9 | 6 . . . . 3 Attach 10 | 1 . 2 . . 7 Detach 1 | . . 1 . . . Swap 3 | . . 1 . . 2 Drop 1 | . . . . . 1 Fire 70 | 4 . 17 . 3 46 Melee 7 | . . . . . 7 Ram . | . . . . . . Kick . | . . . . . . Crush 5 | . . 3 . 2 . Escape Stasis . | . . . . . . Rewire . | . . . . . . Trap . | . . . . . . Miscellaneous . | . . . . . . Route ------- -11/Scrapyard -10/Materials -10/Mines (discovered 3 exits: *Mat x2 / *Exi) -10/Exiles (discovered 2 exits: [*Min x2]) -9/Mines -8/Materials History --------- Turn | Location | Event 10 | -11/Scrapyard | Discovered new exit (range 14) 126 | -11/Scrapyard | Entered Materials 126 | -10/Materials | Discovered new exit (range 7) 139 | -10/Materials | Entered Mines 162 | -10/Mines | Discovered new exit (range 7) 165 | -10/Mines | Identified exit to Materials 307 | -10/Mines | Build established: Mutant 773 | -10/Mines | Learned location of Storage (-8) 1551 | -10/Mines | Deemed a non-threat by the Exiles lab entrance 1554 | -10/Mines | Discovered new exit (range 5) 1566 | -10/Mines | Entered Exiles 1617 | -10/Exiles | Discovered new exit (range 15) 1646 | -10/Exiles | Met 8R-AWN 1689 | -10/Exiles | Met EX-HEX 1751 | -10/Exiles | Met EX-BIN 1780 | -10/Exiles | Aligned with FarCom system 1782 | -10/Exiles | Given EX-Vault access code 1838 | -10/Exiles | Opened EX-Vault 1862 | -10/Exiles | Found Field Lobotomy Kit 1908 | -10/Exiles | Warned to stay clear of 0b10 Research branches 1936 | -10/Exiles | Exiles lab attacked by MAIN.C 2081 | -10/Exiles | Discovered new exit (range 12) 2107 | -10/Exiles | Left Exiles lab with Field Lobotomy Kit 2107 | -10/Exiles | Entered Mines 2107 | -9/Mines | Discovered new exit (range 8) 2108 | -9/Mines | Assembled infested the area 2113 | -9/Mines | Assisted by a Guerilla fighting off Assembled 2124 | -9/Mines | Received a Mining Laser from a helpful Derelict 2137 | -9/Mines | Entered Materials 2137 | -8/Materials | Accompanied by 1 ally 2137 | -8/Materials | Evolved 4 slots: Propulsion x2, Utility x2 2275 | -8/Materials | Assimilated G-47 Trooper with FLK Orb 2286 | -8/Materials | Assimilated G-47 Trooper with FLK Orb 2300 | -8/Materials | Lost 3 parts (1n1u1w) 2444 | -8/Materials | Assimilated Y-45 Defender with FLK Orb 2447 | -8/Materials | Assimilated G-47 Trooper with FLK Orb 2450 | -8/Materials | Assimilated B-36 Bruiser with FLK Orb 2474 | -8/Materials | Core integrity fell below 50% 2496 | -8/Materials | Core integrity fell below 20% 2502 | -8/Materials | Destroyed by G-47 Trooper with Particle Gun Last Messages --------------- 02472_ G-50 Soldier overheating. 02473_ Autogun destroyed. 02476_ Destroyed Hvy. Laser. 02477_ Destroyed Carbon-fiber Leg. 02477_ Com. Wheel destroyed. 02477_ G-50 Soldier overheating. 02478_ G-50 Soldier heat damages Adv. Heat Sink, Lgt. Angular Momentum Engine. 02479_ G-50 Soldier destroyed. 02482_ G-47 Trooper destroyed. 02485_ Destroyed Aluminum Leg. 02487_ Wheel destroyed. 02488_ Acquired 59 matter. 02491_ R-06 Scavenger collects Aluminum Leg. 02495_ R-06 Scavenger collects Lgt. Nuclear Core. 02497_ G-47 Trooper destroyed. 02499_ Hcp. Storage Unit destroyed. 02501_ R-06 Scavenger collects Lgt. Nuclear Core. Map ----- +----------------------------------------------------+ | ?????????????????????????????????????????????????? | | ?????????????????????????????????????????????????? | | ?????????????????????????????????????????????????? | | ?????????????????????????????????????????????????? | | ?????????????????????????????????????????????????? | | ?????????????????????????????????????????????????? | | ?????????????????????????????????????????????????? | | ?????????????????????????????????????????????????? | | ?????????????????????????????????????????????????? | | ?????????????????????????????????????????????????? | | ?????????????????????????????????????????????????? | | ?????????????????????????????????????????????????? | | ?????????????????????????????????????????????????? | | ?????????????????????????????????????????????????? | | ?????????????????????????????????????????????????? | | ?????????????????????????????????????????????????? | | ?????????????????????????????????????????????????? | | ?????????????????????????????????????????????????? | | ?????????????????????????????????????????????????? | | ?????????????????????????????????????????????????? | | ?????????????????????????????????????????????????? | | ?????????????????????????????????????????????????? | | ?????????????????????????????????????????????????? | | ############################?????????????????????? | | =%*g #?????????????????????? | | %[%@%#?????????????????????? | | *g[%!#?????????????????????? | | ??####### ############%!=#?????????????????????? | | ######### #???# """ #[! #?????????????????????? | | # #???# """ # % #?????????????????????? | | # #???# """ ;Yr #?????????????????????? | | # #???# # %#?????????????????????? | | # #???# # %#?????????????????????? | | ###/##### #???# #u #?????????????????????? | | ### ##??# #???######## #?????????????????????? | | #??# #??????????# #?????????????????????? | | #??# #??????????# #?????????????????????? | | #??# #??????????# ?????????????????????? | | #??# #??????????# ????????????????????? | | #??# #??????????# ????????????????????? | | #??# #?????????? ###???????????????????? | | #### #??????????##+##?????????????????????? | | #????????????????????????????????????? | | +????????????????????????????????????? | | * #????????????????????????????????????? | | ### ####### #????????????????????????????????????? | | ??# #?????? #????????????????????????????????????? | | ??#+#######+#????????????????????????????????????? | | ??#% = #????????????????????????????????????? | | ??#* =#????????????????????????????????????? | +----------------------------------------------------+ Best States ------------- Heat Dissipation 31 Energy Generation 14 Energy Capacity 250 Matter Stores 300 Matter Capacity 300 Sight Range 16 Terrain Scan Density 10 Power Shielding 33 Evasion (%) 50 Recoil Reduction 4 Item Schematics ----------------- None Robot Schematics ------------------ None Fabricated ------------ Nothing Repaired ---------- Nothing Studied --------- None Alien Tech Used ----------------- None Achievements -------------- None Challenges ------------ None Game ------ Seed InterdictionZioniteTube Manual? 0 Play Time 00:10:20 Cumulative 48.3 hours Start 2026.02.27 @ 21:41:27 End 2026.02.27 @ 22:53:50 Sessions 1 Manual Loads 0 Difficulty Rogue Special Mode None Game No. 115 Rogue 115 Adventurer 0 Explorer 0 Win Type - Total 0 Types 0/0/0/0/0/0/0/0/0/0 Lore% 30 Gallery% 38 Achievement% 29 Wizard Run 0 Options --------- Layout 2 ASCII 0 Keyboard 1 Movement Arrows Keybinds 0 Fullscreen 1 Font 24/Smallcaps Map View 50x44 Zoom Use 0% Tactical HUD 1 Map Filters NONE Filters NONE Steam 1 RUN: f34f5037-2415-421d-8cac-0405e1c6206d